[Event "*** Titled Tuesday Blitz"]
[Site "Chess.com"]
[Date "2018.06.05"]
[Round "1"]
[White "Hrant_ChessMood"]
[Black "Supernotar"]
[Result "1-0"]
[WhiteElo "2935"]
[BlackElo "2425"]
[TimeControl "180+2"]
[EndTime "13:12:43 PDT"]
[Termination "Hrant_ChessMood won by checkmate"]

1. d4 {[%clk 0:02:58.2]} 1... d5 {[%clk 0:02:59]} 2. c4 {[%clk 0:02:57.9]} 2...
dxc4 {[%clk 0:02:59.2]} 3. e3 {[%clk 0:02:57.1]} 3... Nf6 {[%clk 0:02:59.1]} 4.
Bxc4 {[%clk 0:02:56.8]} 4... e6 {[%clk 0:03:00]} 5. Nf3 {[%clk 0:02:56.9]} 5...
a6 {[%clk 0:03:01.1]} 6. O-O {[%clk 0:02:51.2]} 6... b5 {[%clk 0:03:02]} 7. Be2
{[%clk 0:02:49.5]} 7... Bb7 {[%clk 0:03:02.7]} 8. a4 {[%clk 0:02:51]} 8... b4
{[%clk 0:03:03.5]} 9. Nbd2 {[%clk 0:02:50.6]} 9... c5 {[%clk 0:03:03]} 10. Nc4
{[%clk 0:02:47.2]} 10... Nbd7 {[%clk 0:03:00.9]} 11. b3 {[%clk 0:02:32.9]} 11...
Qc7 {[%clk 0:02:59.4]} 12. Bb2 {[%clk 0:02:33.3]} 12... Be7 {[%clk 0:02:59.5]}
13. Rc1 {[%clk 0:02:34]} 13... O-O {[%clk 0:02:59]} 14. Nce5 {[%clk 0:02:27.4]}
14... Rac8 {[%clk 0:02:42.6]} 15. Bd3 {[%clk 0:02:19.8]} 15... Qb8 {[%clk
0:02:33.3]} 16. Qe2 {[%clk 0:02:18.1]} 16... a5 {[%clk 0:02:29.4]} 17. Rfd1
{[%clk 0:02:01.3]} 17... h6 {[%clk 0:02:17.4]} 18. h3 {[%clk 0:02:00.9]} 18...
Rfd8 {[%clk 0:02:16.7]} 19. Bc4 {[%clk 0:01:54.2]} 19... Bd5 {[%clk 0:02:04.4]}
20. Bxd5 {[%clk 0:01:45.3]} 20... Nxd5 {[%clk 0:02:04.7]} 21. Nxd7 {[%clk
0:01:46.4]} 21... Rxd7 {[%clk 0:02:05.4]} 22. Ne5 {[%clk 0:01:47.9]} 22... Rdc7
{[%clk 0:02:02.8]} 23. Nc4 {[%clk 0:01:47.1]} 23... cxd4 {[%clk 0:01:55.8]} 24.
Bxd4 {[%clk 0:01:41.1]} 24... Bf6 {[%clk 0:01:46.2]} 25. Bxf6 {[%clk 0:01:41.5]}
25... Nxf6 {[%clk 0:01:46.8]} 26. e4 {[%clk 0:01:42.9]} 26... Rc5 {[%clk
0:01:44.1]} 27. Rd3 {[%clk 0:01:33.6]} 27... Nd5 {[%clk 0:01:07.7]} 28. exd5
{[%clk 0:01:04.5]} 28... exd5 {[%clk 0:01:07.9]} 29. Rd4 {[%clk 0:01:05.1]}
29... dxc4 {[%clk 0:01:07.7]} 30. Rdxc4 {[%clk 0:01:03.9]} 30... Rxc4 {[%clk
0:01:08.7]} 31. Rxc4 {[%clk 0:01:05.8]} 31... Rxc4 {[%clk 0:01:09.3]} 32. Qxc4
{[%clk 0:01:07.7]} 32... Qd8 {[%clk 0:01:08.4]} 33. g3 {[%clk 0:01:06.4]} 33...
g6 {[%clk 0:01:05.6]} 34. Kg2 {[%clk 0:01:03.5]} 34... Qa8+ {[%clk 0:01:04.4]}
35. Kg1 {[%clk 0:01:04.1]} 35... Qf3 {[%clk 0:01:00.9]} 36. Qc8+ {[%clk
0:00:56]} 36... Kg7 {[%clk 0:01:01.1]} 37. Qc2 {[%clk 0:00:57.9]} 37... h5
{[%clk 0:00:57.4]} 38. h4 {[%clk 0:00:59.1]} 38... Qc3 {[%clk 0:00:55.6]} 39.
Qd1 {[%clk 0:00:58.3]} 39... Kg8 {[%clk 0:00:56.1]} 40. Kf1 {[%clk 0:00:59.7]}
40... Kg7 {[%clk 0:00:56.6]} 41. Ke2 {[%clk 0:01:00.8]} 41... Qe5+ {[%clk
0:00:54.9]} 42. Kf1 {[%clk 0:01:02]} 42... Qc3 {[%clk 0:00:55.3]} 43. Qd5 {[%clk
0:01:02.8]} 43... Qc1+ {[%clk 0:00:54.7]} 44. Ke2 {[%clk 0:01:03.6]} 44... Qc2+
{[%clk 0:00:54.5]} 45. Ke3 {[%clk 0:01:04.3]} 45... Qc3+ {[%clk 0:00:54.5]} 46.
Qd3 {[%clk 0:01:04.9]} 46... Qc1+ {[%clk 0:00:54.2]} 47. Ke4 {[%clk 0:00:59.2]}
47... Qc7 {[%clk 0:00:49.7]} 48. Qd4+ {[%clk 0:00:52.1]} 48... Kg8 {[%clk
0:00:49.8]} 49. Qd5 {[%clk 0:00:51.5]} 49... Qc2+ {[%clk 0:00:48.3]} 50. Ke3
{[%clk 0:00:52.3]} 50... Qc3+ {[%clk 0:00:49.1]} 51. Qd3 {[%clk 0:00:52.5]}
51... Qc1+ {[%clk 0:00:49.4]} 52. Kd4 {[%clk 0:00:47.7]} 52... Qc7 {[%clk
0:00:46]} 53. Qe3 {[%clk 0:00:45.2]} 53... Qc6 {[%clk 0:00:42.3]} 54. f4 {[%clk
0:00:23.7]} 54... Qb6+ {[%clk 0:00:39.3]} 55. Kd3 {[%clk 0:00:24.4]} 55... Qc6
{[%clk 0:00:36.3]} 56. Qd4 {[%clk 0:00:21.7]} 56... Qf3+ {[%clk 0:00:36.8]} 57.
Qe3 {[%clk 0:00:22.9]} 57... Qd5+ {[%clk 0:00:37.5]} 58. Ke2 {[%clk 0:00:19.8]}
58... Qg2+ {[%clk 0:00:38.4]} 59. Kd1 {[%clk 0:00:20.3]} 59... Qd5+ {[%clk
0:00:37.8]} 60. Kc2 {[%clk 0:00:19.5]} 60... Qg2+ {[%clk 0:00:38.6]} 61. Kc1
{[%clk 0:00:18.6]} 61... Qf1+ {[%clk 0:00:38.4]} 62. Kd2 {[%clk 0:00:19.3]}
62... Qg2+ {[%clk 0:00:39.4]} 63. Ke1 {[%clk 0:00:20.7]} 63... Qc6 {[%clk
0:00:36.9]} 64. Qd3 {[%clk 0:00:16.2]} 64... Qc5 {[%clk 0:00:30.7]} 65. Ke2
{[%clk 0:00:16.4]} 65... Kh7 {[%clk 0:00:28.3]} 66. Qc4 {[%clk 0:00:10.8]} 66...
Qe7+ {[%clk 0:00:25.7]} 67. Kd3 {[%clk 0:00:11.3]} 67... Kg8 {[%clk 0:00:26.5]}
68. Qd5 {[%clk 0:00:10.3]} 68... Qc7 {[%clk 0:00:26.1]} 69. Ke4 {[%clk
0:00:07.3]} 69... Qe7+ {[%clk 0:00:24.8]} 70. Qe5 {[%clk 0:00:07.4]} 70... Qb7+
{[%clk 0:00:25.8]} 71. Kd4 {[%clk 0:00:08.2]} 71... Qd7+ {[%clk 0:00:25.8]} 72.
Kc5 {[%clk 0:00:06.5]} 72... Qb7 {[%clk 0:00:24.4]} 73. Qd5 {[%clk 0:00:05.1]}
73... Qb8 {[%clk 0:00:23.4]} 74. Kc4 {[%clk 0:00:03.7]} 74... Qb6 {[%clk
0:00:22.3]} 75. Qc5 {[%clk 0:00:02.5]} 75... Qa6+ {[%clk 0:00:22.3]} 76. Qb5
{[%clk 0:00:03.2]} 76... Qe6+ {[%clk 0:00:23.1]} 77. Qd5 {[%clk 0:00:04.5]}
77... Qc8+ {[%clk 0:00:21.1]} 78. Kb5 {[%clk 0:00:05.3]} 78... Qc7 {[%clk
0:00:22]} 79. Qe5 {[%clk 0:00:03.3]} 79... Qa7 {[%clk 0:00:19.4]} 80. Qe8+
{[%clk 0:00:03.4]} 80... Kg7 {[%clk 0:00:20.1]} 81. Qe5+ {[%clk 0:00:05.3]}
81... Kg8 {[%clk 0:00:20.3]} 82. Qd5 {[%clk 0:00:06.3]} 82... Qc7 {[%clk
0:00:20.6]} 83. Ka6 {[%clk 0:00:06.7]} 83... Kh7 {[%clk 0:00:19.5]} 84. Kb5
{[%clk 0:00:06.9]} 84... Qa7 {[%clk 0:00:19.8]} 85. Qc5 {[%clk 0:00:07.5]} 85...
Qa8 {[%clk 0:00:19.9]} 86. Qc7 {[%clk 0:00:07.5]} 86... Kg7 {[%clk 0:00:18.7]}
87. Kb6 {[%clk 0:00:08.3]} 87... Qd5 {[%clk 0:00:18.2]} 88. Qe5+ {[%clk
0:00:09.1]} 88... Qxe5 {[%clk 0:00:18.8]} 89. fxe5 {[%clk 0:00:11]} 89... g5
{[%clk 0:00:19.5]} 90. Kxa5 {[%clk 0:00:11]} 90... Kg6 {[%clk 0:00:21.4]} 91.
Kxb4 {[%clk 0:00:11.7]} 91... Kf5 {[%clk 0:00:22.8]} 92. a5 {[%clk 0:00:13.1]}
92... gxh4 {[%clk 0:00:22.8]} 93. gxh4 {[%clk 0:00:13.5]} 93... Kg4 {[%clk
0:00:24.7]} 94. a6 {[%clk 0:00:15]} 94... Kxh4 {[%clk 0:00:26.1]} 95. a7 {[%clk
0:00:16.9]} 95... Kg3 {[%clk 0:00:26.9]} 96. a8=Q {[%clk 0:00:18.8]} 96... h4
{[%clk 0:00:28.8]} 97. Qg8+ {[%clk 0:00:18.4]} 97... Kh2 {[%clk 0:00:29.9]} 98.
Qxf7 {[%clk 0:00:19.4]} 98... h3 {[%clk 0:00:31.3]} 99. e6 {[%clk 0:00:20.6]}
99... Kh1 {[%clk 0:00:32.3]} 100. e7 {[%clk 0:00:21.7]} 100... h2 {[%clk
0:00:33.9]} 101. e8=Q {[%clk 0:00:23.2]} 101... Kg1 {[%clk 0:00:35.3]} 102.
Qeg8+ {[%clk 0:00:24]} 102... Kh1 {[%clk 0:00:36.9]} 103. Qf3# {[%clk 0:00:25]}
1-0

[Event "*** Titled Tuesday Blitz"]
[Site "Chess.com"]
[Date "2018.06.05"]
[Round "2"]
[White "Zaven_ChessMood"]
[Black "The_Unbeatable_One"]
[Result "1-0"]
[WhiteElo "2854"]
[BlackElo "2504"]
[TimeControl "180+2"]
[EndTime "13:20:12 PDT"]
[Termination "Zaven_ChessMood won by resignation"]

1. e4 {[%clk 0:03:01.1]} 1... e5 {[%clk 0:02:59.3]} 2. Nf3 {[%clk 0:03:01.7]}
2... Nc6 {[%clk 0:02:59.8]} 3. Bc4 {[%clk 0:03:03.3]} 3... Bc5 {[%clk
0:03:00.2]} 4. c3 {[%clk 0:03:04.2]} 4... Nf6 {[%clk 0:03:00.7]} 5. d3 {[%clk
0:03:05.8]} 5... d6 {[%clk 0:03:01.8]} 6. Nbd2 {[%clk 0:03:06.5]} 6... O-O
{[%clk 0:03:02.1]} 7. O-O {[%clk 0:03:07.5]} 7... a6 {[%clk 0:03:02.5]} 8. Bb3
{[%clk 0:03:08.7]} 8... Ba7 {[%clk 0:03:02.5]} 9. h3 {[%clk 0:03:09.8]} 9... Ne7
{[%clk 0:03:03.2]} 10. Nh4 {[%clk 0:03:09.4]} 10... Ng6 {[%clk 0:03:03.8]} 11.
Nxg6 {[%clk 0:03:09.4]} 11... hxg6 {[%clk 0:03:04.2]} 12. Nf3 {[%clk 0:03:11]}
12... Nh7 {[%clk 0:02:55.3]} 13. d4 {[%clk 0:03:10.1]} 13... Qe7 {[%clk
0:02:53.9]} 14. Re1 {[%clk 0:03:09.7]} 14... Bd7 {[%clk 0:02:53.8]} 15. Be3
{[%clk 0:03:00]} 15... Kh8 {[%clk 0:02:52.3]} 16. dxe5 {[%clk 0:02:56.8]} 16...
dxe5 {[%clk 0:02:50.1]} 17. Bxa7 {[%clk 0:02:56.3]} 17... Rxa7 {[%clk
0:02:50.6]} 18. Nxe5 {[%clk 0:02:56.3]} 18... Bxh3 {[%clk 0:02:22.3]} 19. Nxf7+
{[%clk 0:02:48.4]} 19... Rxf7 {[%clk 0:02:22.8]} 20. Bxf7 {[%clk 0:02:49.4]}
20... Qxf7 {[%clk 0:01:24.1]} 21. Qd8+ {[%clk 0:02:47.8]} 21... Nf8 {[%clk
0:01:23.8]} 22. Qh4+ {[%clk 0:02:48.3]} 22... Kg8 {[%clk 0:01:21.3]} 23. Qxh3
{[%clk 0:02:49.5]} 1-0

[Event "*** Titled Tuesday Blitz"]
[Site "Chess.com"]
[Date "2018.06.05"]
[Round "2"]
[White "maximlavrov"]
[Black "Flawless2018"]
[Result "1-0"]
[WhiteElo "2450"]
[BlackElo "2482"]
[TimeControl "180+2"]
[EndTime "13:21:05 PDT"]
[Termination "maximlavrov won by resignation"]

1. g3 {[%clk 0:03:01.6]} 1... d5 {[%clk 0:03:00.3]} 2. Nf3 {[%clk 0:03:02.3]}
2... Nf6 {[%clk 0:03:01.1]} 3. Bg2 {[%clk 0:03:03.7]} 3... e6 {[%clk 0:03:00.5]}
4. O-O {[%clk 0:03:04.5]} 4... b6 {[%clk 0:03:00.3]} 5. c4 {[%clk 0:03:04.7]}
5... Bb7 {[%clk 0:03:02.1]} 6. cxd5 {[%clk 0:03:05.9]} 6... exd5 {[%clk
0:03:01.6]} 7. d4 {[%clk 0:03:06.9]} 7... Bd6 {[%clk 0:03:02.1]} 8. Nc3 {[%clk
0:03:08.2]} 8... O-O {[%clk 0:03:03.1]} 9. Nb5 {[%clk 0:03:08.5]} 9... Be7
{[%clk 0:03:02.2]} 10. Bf4 {[%clk 0:03:09]} 10... Na6 {[%clk 0:03:01.2]} 11. Rc1
{[%clk 0:03:06.9]} 11... c6 {[%clk 0:02:55.2]} 12. Nc3 {[%clk 0:03:07.6]} 12...
Bd6 {[%clk 0:02:52.9]} 13. Ne5 {[%clk 0:03:05.1]} 13... h6 {[%clk 0:02:50.7]}
14. e4 {[%clk 0:02:42.1]} 14... Nxe4 {[%clk 0:02:48.5]} 15. Nxe4 {[%clk
0:02:42.4]} 15... dxe4 {[%clk 0:02:50.4]} 16. Bxe4 {[%clk 0:02:43.7]} 16... Bxe5
{[%clk 0:02:48.9]} 17. Bxe5 {[%clk 0:02:44.3]} 17... Re8 {[%clk 0:02:49.1]} 18.
Qg4 {[%clk 0:02:40.9]} 18... f6 {[%clk 0:02:17.8]} 19. Qf5 {[%clk 0:02:39.1]}
19... fxe5 {[%clk 0:02:00.9]} 20. Qh7+ {[%clk 0:02:39.2]} 20... Kf8 {[%clk
0:02:00.9]} 21. Rc3 {[%clk 0:02:31.9]} 21... Qg5 {[%clk 0:02:01.1]} 22. f4
{[%clk 0:02:28.7]} 22... Qg4 {[%clk 0:01:58.9]} 23. Bf5 {[%clk 0:02:24.2]} 23...
Qh5 {[%clk 0:01:56.6]} 24. fxe5 {[%clk 0:02:25.2]} 24... Ke7 {[%clk 0:01:52.1]}
25. Bg6 {[%clk 0:02:25.5]} 25... Qg4 {[%clk 0:01:49.9]} 26. Qxg7+ {[%clk
0:02:25.3]} 26... Kd8 {[%clk 0:01:50]} 27. Qf6+ {[%clk 0:02:25.9]} 27... Kc7
{[%clk 0:01:46.7]} 28. Qd6+ {[%clk 0:02:23.5]} 28... Kc8 {[%clk 0:01:47.3]} 29.
Bxe8 {[%clk 0:02:13.8]} 29... Nc7 {[%clk 0:01:44.8]} 30. Bxc6 {[%clk 0:02:13.7]}
30... Kb8 {[%clk 0:01:36.2]} 31. Bxb7 {[%clk 0:02:14]} 31... Qxd4+ {[%clk
0:01:31.9]} 32. Qxd4 {[%clk 0:02:14.4]} 1-0

[Event "*** Titled Tuesday Blitz"]
[Site "Chess.com"]
[Date "2018.06.05"]
[Round "2"]
[White "Karina_Oparina"]
[Black "Eliwood44"]
[Result "1-0"]
[WhiteElo "2191"]
[BlackElo "2169"]
[TimeControl "180+2"]
[EndTime "13:21:06 PDT"]
[Termination "Karina_Oparina won by resignation"]

1. d4 {[%clk 0:02:59.8]} 1... Nf6 {[%clk 0:02:59.3]} 2. Nf3 {[%clk 0:02:58.6]}
2... e6 {[%clk 0:02:54.5]} 3. g3 {[%clk 0:02:58.1]} 3... d5 {[%clk 0:02:55.2]}
4. Bg2 {[%clk 0:02:54.9]} 4... b5 {[%clk 0:02:54.2]} 5. O-O {[%clk 0:02:54.4]}
5... Be7 {[%clk 0:02:54.5]} 6. a4 {[%clk 0:02:53]} 6... b4 {[%clk 0:02:55]} 7.
c4 {[%clk 0:02:48.5]} 7... O-O {[%clk 0:02:54.1]} 8. c5 {[%clk 0:02:45.9]} 8...
a5 {[%clk 0:02:52.8]} 9. b3 {[%clk 0:02:43.4]} 9... Ba6 {[%clk 0:02:51.8]} 10.
Bb2 {[%clk 0:02:42.5]} 10... Ne4 {[%clk 0:02:47]} 11. Nbd2 {[%clk 0:02:42.3]}
11... f5 {[%clk 0:02:47.7]} 12. Ne5 {[%clk 0:02:42.1]} 12... Bf6 {[%clk
0:02:44.8]} 13. f3 {[%clk 0:02:29]} 13... Nxd2 {[%clk 0:02:35.6]} 14. Qxd2
{[%clk 0:02:29.8]} 14... Bxe5 {[%clk 0:02:36.8]} 15. dxe5 {[%clk 0:02:30.4]}
15... c6 {[%clk 0:02:37.2]} 16. Rfe1 {[%clk 0:02:27.2]} 16... Nd7 {[%clk
0:02:37.6]} 17. Bd4 {[%clk 0:02:26.4]} 17... Qe7 {[%clk 0:02:38.2]} 18. Rac1
{[%clk 0:02:26.8]} 18... Rf7 {[%clk 0:02:33.2]} 19. e4 {[%clk 0:02:17]} 19...
fxe4 {[%clk 0:02:33.7]} 20. fxe4 {[%clk 0:02:17.4]} 20... Raf8 {[%clk
0:02:34.6]} 21. exd5 {[%clk 0:02:15.3]} 21... cxd5 {[%clk 0:02:36.5]} 22. c6
{[%clk 0:02:15]} 22... Nb8 {[%clk 0:02:34.2]} 23. Bc5 {[%clk 0:02:09.6]} 23...
Qc7 {[%clk 0:02:30.9]} 24. Bxf8 {[%clk 0:02:06.5]} 24... Rxf8 {[%clk 0:02:31.4]}
25. Bf1 {[%clk 0:02:03.8]} 25... Bxf1 {[%clk 0:02:26.1]} 26. Rxf1 {[%clk
0:02:04.4]} 26... Rxf1+ {[%clk 0:02:27.8]} 27. Kxf1 {[%clk 0:02:04.7]} 27... h6
{[%clk 0:02:15.9]} 28. Kg2 {[%clk 0:01:59.5]} 28... Na6 {[%clk 0:02:11.1]} 29.
Qd4 {[%clk 0:01:57.8]} 29... Nb8 {[%clk 0:02:10.4]} 30. Rc2 {[%clk 0:01:54.3]}
30... Kh8 {[%clk 0:02:07.8]} 31. Qc5 {[%clk 0:01:51.6]} 31... Na6 {[%clk
0:02:05]} 32. Qd6 {[%clk 0:01:50.3]} 1-0

[Event "*** Titled Tuesday Blitz"]
[Site "Chess.com"]
[Date "2018.06.05"]
[Round "2"]
[White "Tash_Boy"]
[Black "gammagramma"]
[Result "1-0"]
[WhiteElo "2707"]
[BlackElo "2510"]
[TimeControl "180+2"]
[EndTime "13:21:13 PDT"]
[Termination "Tash_Boy won by resignation"]

1. e4 {[%clk 0:03:01.9]} 1... e6 {[%clk 0:02:59.8]} 2. d4 {[%clk 0:03:02.4]}
2... d5 {[%clk 0:03:01.7]} 3. Nc3 {[%clk 0:03:03.8]} 3... Nf6 {[%clk 0:03:02.7]}
4. e5 {[%clk 0:03:04.1]} 4... Nfd7 {[%clk 0:03:03.7]} 5. f4 {[%clk 0:03:05.5]}
5... c5 {[%clk 0:03:04.7]} 6. Nf3 {[%clk 0:03:07]} 6... Nc6 {[%clk 0:03:06.3]}
7. Be3 {[%clk 0:03:08.1]} 7... cxd4 {[%clk 0:03:06.4]} 8. Nxd4 {[%clk
0:03:08.2]} 8... Bc5 {[%clk 0:03:07.8]} 9. Qd2 {[%clk 0:03:04.1]} 9... Bxd4
{[%clk 0:03:08.5]} 10. Bxd4 {[%clk 0:03:01.3]} 10... Nxd4 {[%clk 0:03:10.4]} 11.
Qxd4 {[%clk 0:03:02.7]} 11... Qb6 {[%clk 0:03:11.7]} 12. Nb5 {[%clk 0:02:56.4]}
12... Qxd4 {[%clk 0:03:07.9]} 13. Nxd4 {[%clk 0:02:58.2]} 13... Ke7 {[%clk
0:03:09.3]} 14. Bd3 {[%clk 0:02:54.1]} 14... a6 {[%clk 0:03:08.1]} 15. Kd2
{[%clk 0:02:54.1]} 15... Nb8 {[%clk 0:03:04.7]} 16. c3 {[%clk 0:02:52]} 16...
Nc6 {[%clk 0:03:05.1]} 17. Ke3 {[%clk 0:02:52.1]} 17... Bd7 {[%clk 0:03:06.1]}
18. Nxc6+ {[%clk 0:02:49.3]} 18... bxc6 {[%clk 0:03:05.7]} 19. Kd4 {[%clk
0:02:50.2]} 19... a5 {[%clk 0:03:06.2]} 20. a4 {[%clk 0:02:32.5]} 20... Rhc8
{[%clk 0:02:58]} 21. Kc5 {[%clk 0:02:32.1]} 21... Ra7 {[%clk 0:02:55.8]} 22. b4
{[%clk 0:02:31.7]} 22... Rca8 {[%clk 0:02:53.5]} 23. b5 {[%clk 0:02:27.4]} 23...
cxb5 {[%clk 0:02:51.9]} 24. axb5 {[%clk 0:02:28.3]} 24... a4 {[%clk 0:02:49.2]}
25. Ra3 {[%clk 0:02:28.3]} 25... Ra5 {[%clk 0:02:46]} 26. Kb6 {[%clk 0:02:25.2]}
26... Kd8 {[%clk 0:02:44.8]} 27. Rb1 {[%clk 0:02:24.4]} 27... R5a7 {[%clk
0:02:41.5]} 28. c4 {[%clk 0:02:25.2]} 28... dxc4 {[%clk 0:02:39.7]} 29. Be4
{[%clk 0:02:25]} 29... c3 {[%clk 0:02:28.6]} 30. Bxa8 {[%clk 0:02:23.1]} 30...
Rxa8 {[%clk 0:02:30.5]} 31. Rxc3 {[%clk 0:02:17.8]} 31... a3 {[%clk 0:02:32]}
32. Kb7 {[%clk 0:02:18.4]} 32... a2 {[%clk 0:02:25.5]} 33. Ra1 {[%clk
0:02:17.2]} 33... Ra5 {[%clk 0:02:24.2]} 34. b6 {[%clk 0:02:16.6]} 34... Bb5
{[%clk 0:02:20.1]} 35. Rc2 {[%clk 0:02:16.2]} 35... Ba6+ {[%clk 0:02:17.4]} 36.
Kb8 {[%clk 0:02:15.8]} 36... Rb5 {[%clk 0:02:17.5]} 37. Rd2+ {[%clk 0:02:09.8]}
37... Ke7 {[%clk 0:02:17.5]} 38. Raxa2 {[%clk 0:02:11.7]} 38... Rxb6+ {[%clk
0:02:17.7]} 39. Ka7 {[%clk 0:02:12.7]} 1-0

[Event "*** Titled Tuesday Blitz"]
[Site "Chess.com"]
[Date "2018.06.05"]
[Round "2"]
[White "CookiesAndIceCream"]
[Black "AndrewDGreen"]
[Result "0-1"]
[WhiteElo "2055"]
[BlackElo "2189"]
[TimeControl "180+2"]
[EndTime "13:21:27 PDT"]
[Termination "AndrewDGreen won by resignation"]

1. e4 {[%clk 0:03:01.9]} 1... c5 {[%clk 0:03:00.4]} 2. Nf3 {[%clk 0:03:02.7]}
2... g6 {[%clk 0:03:01.5]} 3. d4 {[%clk 0:03:01.3]} 3... cxd4 {[%clk 0:03:03.4]}
4. Nxd4 {[%clk 0:03:02.3]} 4... Nc6 {[%clk 0:03:04.6]} 5. c4 {[%clk 0:03:02.6]}
5... Nf6 {[%clk 0:03:05.5]} 6. Nc3 {[%clk 0:03:02.9]} 6... Nxd4 {[%clk
0:03:06.4]} 7. Qxd4 {[%clk 0:03:03.1]} 7... d6 {[%clk 0:03:06.4]} 8. Be3 {[%clk
0:03:03.5]} 8... Bg7 {[%clk 0:03:07.1]} 9. Be2 {[%clk 0:03:04.6]} 9... O-O
{[%clk 0:03:08.5]} 10. Qd2 {[%clk 0:03:06]} 10... a5 {[%clk 0:03:07.1]} 11. Rd1
{[%clk 0:03:03.2]} 11... a4 {[%clk 0:02:58.7]} 12. O-O {[%clk 0:03:02.1]} 12...
Be6 {[%clk 0:02:40.3]} 13. Bd4 {[%clk 0:02:59.2]} 13... Qa5 {[%clk 0:02:33.9]}
14. f4 {[%clk 0:02:33.5]} 14... Rfc8 {[%clk 0:02:29.6]} 15. b3 {[%clk
0:02:17.9]} 15... axb3 {[%clk 0:02:29.3]} 16. axb3 {[%clk 0:02:19.2]} 16... Qb4
{[%clk 0:02:21.1]} 17. f5 {[%clk 0:02:02.8]} 17... Bd7 {[%clk 0:02:16.4]} 18.
Rb1 {[%clk 0:01:37.2]} 18... Ra3 {[%clk 0:02:01.8]} 19. Bd1 {[%clk 0:01:27.4]}
19... Nxe4 {[%clk 0:01:29.2]} 20. Nxe4 {[%clk 0:01:03.6]} 20... Qxd2 {[%clk
0:01:29]} 21. Nxd2 {[%clk 0:01:04.4]} 21... Bxd4+ {[%clk 0:01:30]} 22. Kh1
{[%clk 0:01:05.8]} 22... Bxf5 {[%clk 0:01:30.7]} 0-1

[Event "*** Titled Tuesday Blitz"]
[Site "Chess.com"]
[Date "2018.06.05"]
[Round "2"]
[White "DiamondCrusher22"]
[Black "nicegg"]
[Result "1-0"]
[WhiteElo "1956"]
[BlackElo "1881"]
[TimeControl "180+2"]
[EndTime "13:21:33 PDT"]
[Termination "DiamondCrusher22 won by resignation"]

1. e4 {[%clk 0:03:01.9]} 1... e5 {[%clk 0:03:00.8]} 2. Nf3 {[%clk 0:03:02.4]}
2... Nc6 {[%clk 0:03:01.8]} 3. Bb5 {[%clk 0:03:02.9]} 3... Nd4 {[%clk
0:03:02.3]} 4. Nxd4 {[%clk 0:03:01.5]} 4... exd4 {[%clk 0:03:03.3]} 5. d3 {[%clk
0:02:59.1]} 5... Qh4 {[%clk 0:02:56.3]} 6. O-O {[%clk 0:02:53.2]} 6... Nh6
{[%clk 0:02:56.9]} 7. g3 {[%clk 0:02:50.2]} 7... Qh3 {[%clk 0:02:57.4]} 8. Bxh6
{[%clk 0:02:44.9]} 8... Qxh6 {[%clk 0:02:57.5]} 9. Nd2 {[%clk 0:02:43]} 9... Bc5
{[%clk 0:02:56.3]} 10. Nb3 {[%clk 0:02:38.3]} 10... Bb6 {[%clk 0:02:56.5]} 11.
c3 {[%clk 0:02:21.2]} 11... dxc3 {[%clk 0:02:54.6]} 12. bxc3 {[%clk 0:02:22.3]}
12... c6 {[%clk 0:02:55.7]} 13. Bc4 {[%clk 0:02:22.6]} 13... d6 {[%clk
0:02:55.6]} 14. d4 {[%clk 0:02:14.3]} 14... Be6 {[%clk 0:02:53.4]} 15. d5 {[%clk
0:02:13]} 15... cxd5 {[%clk 0:02:47]} 16. exd5 {[%clk 0:02:07]} 16... Bh3 {[%clk
0:02:41.2]} 17. Re1+ {[%clk 0:02:07.3]} 17... Kf8 {[%clk 0:02:36.6]} 18. Qf3
{[%clk 0:01:53.5]} 18... Qf6 {[%clk 0:02:33.7]} 19. Qe2 {[%clk 0:01:44.1]} 19...
Bd7 {[%clk 0:02:25.4]} 20. Nd4 {[%clk 0:01:21.2]} 20... h5 {[%clk 0:02:18.4]}
21. Qe4 {[%clk 0:01:05.7]} 21... Re8 {[%clk 0:02:13.1]} 22. Qd3 {[%clk
0:01:00.6]} 22... h4 {[%clk 0:02:10.6]} 23. Rxe8+ {[%clk 0:00:59.2]} 23... Bxe8
{[%clk 0:02:10.2]} 24. Re1 {[%clk 0:01:00.5]} 24... hxg3 {[%clk 0:02:08.2]} 25.
fxg3 {[%clk 0:01:00.4]} 25... Rh5 {[%clk 0:02:06.2]} 26. Kg2 {[%clk 0:00:50.8]}
26... Re5 {[%clk 0:02:02.7]} 27. Rf1 {[%clk 0:00:51.7]} 27... Qg5 {[%clk
0:01:57.2]} 28. Ne6+ {[%clk 0:00:50.8]} 1-0

[Event "*** Titled Tuesday Blitz"]
[Site "Chess.com"]
[Date "2018.06.05"]
[Round "2"]
[White "JaimeSantosLatasa"]
[Black "GasconJR"]
[Result "1-0"]
[WhiteElo "2636"]
[BlackElo "2337"]
[TimeControl "180+2"]
[EndTime "13:21:44 PDT"]
[Termination "JaimeSantosLatasa won by resignation"]

1. Nf3 {[%clk 0:03:01.9]} 1... Nf6 {[%clk 0:01:52.1]} 2. c4 {[%clk 0:03:01.6]}
2... e6 {[%clk 0:01:53.6]} 3. Nc3 {[%clk 0:03:02.2]} 3... d5 {[%clk 0:01:54.8]}
4. d4 {[%clk 0:03:02.8]} 4... Be7 {[%clk 0:01:56]} 5. Bg5 {[%clk 0:03:02.2]}
5... Nbd7 {[%clk 0:01:57.1]} 6. e3 {[%clk 0:03:02.9]} 6... h6 {[%clk 0:01:58.5]}
7. Bh4 {[%clk 0:03:03.9]} 7... O-O {[%clk 0:01:58.2]} 8. Rc1 {[%clk 0:03:04.3]}
8... c6 {[%clk 0:01:58.8]} 9. a3 {[%clk 0:03:03.8]} 9... a6 {[%clk 0:01:59.3]}
10. Qc2 {[%clk 0:03:03.1]} 10... dxc4 {[%clk 0:01:58.8]} 11. Bxc4 {[%clk
0:03:03.8]} 11... b5 {[%clk 0:02:00.7]} 12. Bd3 {[%clk 0:03:04.7]} 12... c5
{[%clk 0:02:02.1]} 13. O-O {[%clk 0:02:59.5]} 13... Bb7 {[%clk 0:02:03.1]} 14.
Be2 {[%clk 0:02:57.3]} 14... Rc8 {[%clk 0:02:00.2]} 15. Rfd1 {[%clk 0:02:57.7]}
15... Qb6 {[%clk 0:02:00.6]} 16. Ne5 {[%clk 0:02:55.4]} 16... Rfe8 {[%clk
0:01:55.5]} 17. Nxd7 {[%clk 0:02:53.6]} 17... Nxd7 {[%clk 0:01:57.4]} 18. Bxe7
{[%clk 0:02:52.3]} 18... Rxe7 {[%clk 0:01:59.3]} 19. d5 {[%clk 0:02:49.7]} 19...
Nf6 {[%clk 0:01:29.2]} 20. Bf3 {[%clk 0:02:42.7]} 20... Rd8 {[%clk 0:01:20.3]}
21. dxe6 {[%clk 0:02:37.2]} 21... Bxf3 {[%clk 0:01:19.3]} 22. exf7+ {[%clk
0:02:36.4]} 22... Rxf7 {[%clk 0:01:20.8]} 23. gxf3 {[%clk 0:02:34.9]} 23... Rdf8
{[%clk 0:00:57.9]} 24. Qg6 {[%clk 0:02:32.7]} 24... Qe6 {[%clk 0:00:53]} 25. f4
{[%clk 0:02:32]} 25... Qb3 {[%clk 0:00:50.1]} 26. Rc2 {[%clk 0:02:26.6]} 26...
Re7 {[%clk 0:00:36.4]} 27. Rcd2 {[%clk 0:02:25.5]} 27... b4 {[%clk 0:00:34.3]}
28. axb4 {[%clk 0:02:25.2]} 28... cxb4 {[%clk 0:00:35.6]} 29. Ne2 {[%clk
0:02:22.4]} 29... Re6 {[%clk 0:00:31.8]} 30. Nd4 {[%clk 0:02:21.8]} 30... Ne4
{[%clk 0:00:32.1]} 1-0